lending/lending_fUSD_20250516
["ID","MTS","AMOUNT","RATE_DAILY","PERIOD"]
[361300947,1747436994279,-861.05,0.00016438,2]
[361300948,1747436994301,-400.0,0.00016438,2]
[361300949,1747436994323,-400.0,0.00016438,2]
[361300950,1747436994345,-663.8,0.00016438,2]
[361300951,1747436994367,-637.47,0.00016438,2]
[361300952,1747436994388,-429.80828352,0.00016438,2]
[361300953,1747436994416,-68.44171648,0.00016438,2]
[361300954,1747436994437,-630.03,0.00016438,2]
[361300955,1747436994459,-400.0,0.00016438,2]
[361300956,1747436994481,-637.71,0.00016438,2]
[361300957,1747436994503,-402.63,0.00016438,2]
[361300958,1747436994525,-400.0,0.00016438,2]
[361300959,1747436994548,-400.0,0.00016438,2]
[361300960,1747436994571,-400.0,0.00016438,2]
[361300961,1747436994594,-808.51,0.00016438,2]
[361300962,1747436994617,-400.0,0.00016438,2]
[361300963,1747436994639,-514.67,0.00016438,2]
[361300964,1747436994663,-400.0,0.00016438,2]
[361300965,1747436994684,-400.0,0.00016438,2]
[361300966,1747436994705,-400.0,0.00016438,2]
[361300967,1747436994726,-502.14,0.00016438,2]
[361300968,1747436994749,-439.61,0.00016438,2]
[361300969,1747436994771,-437.61,0.00016438,2]
[361300970,1747436994793,-400.0,0.00016438,2]
[361300971,1747436994815,-403.27720785,0.00016438,2]
[361300972,1747436994836,-400.0,0.00016438,2]
[361300973,1747436994858,-400.0,0.00016438,2]
[361300974,1747436994881,-715.82,0.00016438,2]
[361300975,1747436994904,-39.55107567,0.00016438,2]
[361300976,1747437004280,-1200.0,0.00016437,2]
[361300977,1747437004305,-360.44892433,0.00016438,2]
[361300978,1747437004328,-400.0,0.00016438,2]
[361300979,1747437004353,-674.0,0.00016438,2]
[361300980,1747437004378,-674.0,0.00016438,2]
[361300981,1747437004404,-674.0,0.00016438,2]
[361300982,1747437004432,-674.0,0.00016438,2]
[361300983,1747437004464,-400.0,0.00016438,2]
[361300984,1747437004493,-400.0,0.00016438,2]
[361300985,1747437004522,-400.0,0.00016438,2]
[361300986,1747437004545,-1011.31,0.00016438,2]
[361300987,1747437004568,-400.0,0.00016438,2]
[361300988,1747437004591,-410.64040621,0.00016438,2]
[361300989,1747437004812,-466.75,0.00016438,2]
[361300990,1747437004840,-400.0,0.00016438,2]
[361300991,1747437004863,-400.0,0.00016438,2]
[361300992,1747437004895,-400.0,0.00016438,2]
[361300993,1747437004920,-400.0,0.00016438,2]
[361300994,1747437004945,-254.85066946,0.00016438,2]
[361301006,1747437032575,175.0,0.00016436,120]
[361301007,1747437032621,-904.01933054,0.00016438,2]
[361301008,1747437032630,-455.19724939,0.00016438,2]
[361301009,1747437032641,-61.38132736,0.00016438,2]
[361301010,1747437032650,-400.0,0.00016438,2]
[361301011,1747437032660,-400.0,0.00016438,2]
[361301012,1747437032670,-450.0,0.00016438,2]
[361301013,1747437032680,-163.35904649,0.00016438,2]
[361301014,1747437032689,-400.0,0.00016438,2]
[361301015,1747437032698,-188.61286024,0.00016438,2]
[361301016,1747437032709,-272.54713976,0.00016438,2]
[361301017,1747437032722,-400.0,0.00016438,2]
[361301018,1747437032736,-400.0,0.00016438,2]
[361301019,1747437032753,-400.0,0.00016438,2]
[361301020,1747437032763,-92.96886339,0.00016438,2]
[361301021,1747437032810,-307.03113661,0.00016438,2]
[361301022,1747437032820,-177.21228346,0.00016438,2]
[361301023,1747437032832,-222.78771654,0.00016438,2]
[361301024,1747437032841,-413.16446339,0.00016438,2]
[361301025,1747437032858,-118.00553661,0.00016438,2]
[361301026,1747437032868,-400.0,0.00016438,2]
[361301027,1747437032877,-330.34037263,0.00016438,2]
[361301028,1747437032888,-169.65962737,0.00016438,2]
[361301029,1747437032898,-151.27390919,0.00016438,2]
[361301030,1747437032937,-248.72609081,0.00016438,2]
[361301031,1747437032946,-351.27390919,0.00016438,2]
[361301127,1747437038152,-891.50609081,0.00016438,2]
[361301128,1747437038163,-400.0,0.00016438,2]
[361301129,1747437038173,-450.0,0.00016438,2]
[361301130,1747437038182,-400.0,0.00016438,2]
[361301131,1747437038192,-400.0,0.00016438,2]
[361301132,1747437038202,-400.0,0.00016438,2]
[361301133,1747437038211,-450.0,0.00016438,2]
[361301134,1747437038221,-400.0,0.00016438,2]
[361301135,1747437038230,-946.71,0.00016438,2]
[361301136,1747437038239,-400.0,0.00016438,2]
[361301137,1747437038249,-400.0,0.00016438,2]
[361301138,1747437038261,-470.0,0.00016438,2]
[361301139,1747437038271,-464.81,0.00016438,2]
[361301140,1747437038282,-471.64,0.00016438,2]
[361301141,1747437038292,-1920.57,0.00016438,2]
[361301142,1747437038302,-400.0,0.00016438,2]
[361301143,1747437038312,-469.77,0.00016438,2]
[361301144,1747437038322,-400.0,0.00016438,2]
[361301145,1747437038332,-512.84,0.00016438,2]
[361301146,1747437038342,-206.31138563,0.00016438,2]
[361301147,1747437038351,-748.51,0.00016438,2]
[361301148,1747437038361,-211.28211041,0.00016438,2]
[361301149,1747437038371,-400.0,0.00016438,2]
[361301150,1747437038381,-400.0,0.00016438,2]
[361301151,1747437038391,-400.0,0.00016438,2]
[361301152,1747437038400,-400.0,0.00016438,2]
[361301153,1747437038410,-556.94,0.00016438,2]
[361301154,1747437038419,-400.0,0.00016438,2]
[361301155,1747437038428,-400.0,0.00016438,2]
[361301156,1747437038438,-400.0,0.00016438,2]
[361301157,1747437038447,-728.42,0.00016438,2]
[361301158,1747437038456,-400.0,0.00016438,2]
[361301159,1747437038466,-430.0,0.00016438,2]
[361301160,1747437038475,-400.0,0.00016438,2]
[361301161,1747437038484,-412.14,0.00016438,2]
[361301162,1747437038494,-400.0,0.00016438,2]
[361301163,1747437038505,-400.0,0.00016438,2]
[361301164,1747437038518,-400.0,0.00016438,2]
[361301165,1747437038528,-534.78,0.00016438,2]
[361301166,1747437038539,-448.24,0.00016438,2]
[361301167,1747437038552,-400.0,0.00016438,2]
[361301168,1747437038562,-400.0,0.00016438,2]
[361301169,1747437038575,-400.0,0.00016438,2]
[361301170,1747437038584,-1327.21,0.00016438,2]
[361301172,1747437038594,-531.42826194,0.00016438,2]
[361301174,1747437038603,-450.0,0.00016438,2]
[361301176,1747437038613,-400.0,0.00016438,2]
[361301178,1747437038622,-400.0,0.00016438,2]
[361301180,1747437038632,-400.0,0.00016438,2]
[361301182,1747437038642,-466.05,0.00016438,2]
[361301184,1747437038651,-925.5,0.00016438,2]
[361301186,1747437038661,-400.0,0.00016438,2]
[361301188,1747437038671,-450.0,0.00016438,2]
[361301190,1747437038680,-300.26846619,0.00016438,2]
[361301192,1747437038689,-400.0,0.00016438,2]
[361301194,1747437038699,-400.0,0.00016438,2]
[361301196,1747437038708,-127.05770527,0.00016438,2]
[361301197,1747437038739,-1018.17229473,0.00016438,2]
[361301198,1747437038749,-441.66,0.00016438,2]
[361301199,1747437038759,-400.0,0.00016438,2]
[361301200,1747437038768,-400.0,0.00016438,2]
[361301201,1747437038778,-400.0,0.00016438,2]
[361301202,1747437038787,-400.0,0.00016438,2]
[361301203,1747437038797,-400.0,0.00016438,2]
[361301204,1747437038807,-400.0,0.00016438,2]
[361301205,1747437038816,-814.29,0.00016438,2]
[361301206,1747437038825,-2226.55,0.00016438,2]
[361301207,1747437038834,-400.0,0.00016438,2]
[361301208,1747437038844,-400.0,0.00016438,2]
[361301209,1747437038853,-400.0,0.00016438,2]
[361301210,1747437038863,-400.0,0.00016438,2]
[361301211,1747437038872,-400.0,0.00016438,2]
[361301212,1747437038882,-450.0,0.00016438,2]
[361301213,1747437038891,-400.0,0.00016438,2]
[361301214,1747437038903,-1658.17,0.00016438,2]
[361301215,1747437038913,-541.41,0.00016438,2]
[361301216,1747437038922,-1059.42,0.00016438,2]
[361301217,1747437038931,-215.20153337,0.00016438,2]
[361301218,1747437038941,-613.64,0.00016438,2]
[361301219,1747437038950,-400.0,0.00016438,2]
[361301220,1747437038960,-807.46,0.00016438,2]
[361301221,1747437038969,-400.0,0.00016438,2]
[361301222,1747437038978,-688.83,0.00016438,2]
[361301223,1747437038988,-400.0,0.00016438,2]
[361301224,1747437038997,-400.0,0.00016438,2]
[361301225,1747437039007,-513.88,0.00016438,2]
[361301226,1747437039020,-400.0,0.00016438,2]
[361301227,1747437039030,-797.02,0.00016438,2]
[361301228,1747437039039,-400.0,0.00016438,2]
[361301229,1747437039168,-767.31,0.00016438,2]
[361301230,1747437039179,-400.0,0.00016438,2]
[361301231,1747437039188,-318.61422986,0.00016438,2]
[361301232,1747437039198,-400.0,0.00016438,2]
[361301233,1747437039207,-1206.4,0.00016438,2]
[361301234,1747437039216,-400.0,0.00016438,2]
[361301235,1747437039226,-499.55,0.00016438,2]
[361301236,1747437039236,-852.07,0.00016438,2]
[361301237,1747437039246,-424.36,0.00016438,2]
[361301238,1747437039256,-400.0,0.00016438,2]
[361301239,1747437039266,-446.92,0.00016438,2]
[361301240,1747437039275,-400.0,0.00016438,2]
[361301241,1747437039285,-400.0,0.00016438,2]
[361301242,1747437039295,-400.0,0.00016438,2]
[361301243,1747437039304,-17262.4,0.00016438,2]
[361301244,1747437039314,-1309.28,0.00016438,2]
[361301245,1747437039324,-3082.95,0.00016438,2]
[361301246,1747437039334,-400.0,0.00016438,2]
[361301247,1747437039345,-711.76,0.00016438,2]
[361301248,1747437039355,-450.0,0.00016438,2]
[361301249,1747437039365,-400.0,0.00016438,2]
[361301250,1747437039374,-400.0,0.00016438,2]
[361301251,1747437039384,-924.43,0.00016438,2]
[361301252,1747437039393,-400.0,0.00016438,2]
[361301253,1747437039403,-1000.0,0.00016438,2]
[361301254,1747437039412,-24884.85,0.00016438,2]
[361301255,1747437039421,-450.0,0.00016438,2]
[361301256,1747437039431,-651.65,0.00016438,2]
[361301257,1747437039440,-400.0,0.00016438,2]
[361301258,1747437039449,-450.0,0.00016438,2]
[361301259,1747437039458,-400.0,0.00016438,2]
[361301260,1747437039468,-228.46093629,0.00016438,2]
[361301261,1747437039477,-508.15,0.00016438,2]
[361301262,1747437039486,-280.13096752,0.00016438,2]
[361301263,1747437039496,-400.0,0.00016438,2]
[361301264,1747437039505,-847.11,0.00016438,2]
[361301265,1747437039514,-400.0,0.00016438,2]
[361301266,1747437039523,-400.0,0.00016438,2]
[361301267,1747437039532,-534.2,0.00016438,2]
[361301268,1747437039543,-1552.18,0.00016438,2]
[361301269,1747437039552,-400.0,0.00016438,2]
[361301270,1747437039561,-664.59,0.00016438,2]
[361301271,1747437039570,-760.96,0.00016438,2]
[361301272,1747437039580,-3467.99,0.00016438,2]
[361301273,1747437039589,-1395.79,0.00016438,2]
[361301274,1747437039598,-758.58,0.00016438,2]
[361301275,1747437039607,-450.0,0.00016438,2]
[361301276,1747437039626,-400.0,0.00016438,2]
[361301277,1747437039636,-700.42,0.00016438,2]
[361301278,1747437039646,-400.0,0.00016438,2]
[361301279,1747437039656,-400.0,0.00016438,2]
[361301280,1747437039665,-10358.86,0.00016438,2]
[361301281,1747437039675,-400.0,0.00016438,2]
[361301282,1747437039684,-500.0,0.00016438,2]
[361301283,1747437039693,-500.0,0.00016438,2]
[361301284,1747437039702,-547.33,0.00016438,2]
[361301285,1747437039712,-500.0,0.00016438,2]
[361301286,1747437039721,-500.0,0.00016438,2]
[361301287,1747437039731,-400.0,0.00016438,2]
[361301288,1747437039740,-400.0,0.00016438,2]
[361301289,1747437039750,-455.96208024,0.00016438,2]
[361301290,1747437039767,-146.77791976,0.00016438,2]
[361301291,1747437039776,-993.85,0.00016438,2]
[361301292,1747437039786,-993.85,0.00016438,2]
[361301293,1747437039796,-993.85,0.00016438,2]
[361301294,1747437039805,-4288.2,0.00016438,2]
[361301295,1747437039814,-157.16586656,0.00016438,2]
[361301296,1747437039934,-836.68413344,0.00016438,2]
[361301297,1747437039944,-629.22,0.00016438,2]
[361301298,1747437039954,-423.18,0.00016438,2]
[361301299,1747437039963,-494.41586653,0.00016438,2]
[361301300,1747437039974,-951.79413347,0.00016438,2]
[361301301,1747437039984,-220.67295134,0.00016438,2]
[361301302,1747437040012,-845.21704866,0.00016438,2]
[361301303,1747437040023,-400.0,0.00016438,2]
[361301304,1747437040034,-450.0,0.00016438,2]
[361301305,1747437040044,-2632.41251868,0.00016438,2]
[361301312,1747437040491,-418.3438048,0.00016416,2]
[361301313,1747437040502,-982.43695699,0.00016438,2]
[361301314,1747437040637,-1059.35053224,0.00016438,2]
[361301315,1747437040648,-264.97063632,0.00016438,2]
[361301316,1747437040659,-16088.14935577,0.00016438,2]
[361301317,1747437040668,-450.0,0.00016438,2]
[361301318,1747437040677,-337.55962421,0.00016438,2]
[361301319,1747437040687,-614.55,0.00016438,2]
[361301320,1747437040696,-400.0,0.00016438,2]
[361301321,1747437040705,-400.0,0.00016438,2]
[361301322,1747437040714,-1274.57,0.00016438,2]
[361301323,1747437040723,-889.95,0.00016438,2]
[361301324,1747437040732,-517.41,0.00016438,2]
[361301325,1747437040741,-400.0,0.00016438,2]
[361301326,1747437040751,-646.66,0.00016438,2]
[361301327,1747437040760,-2769.06,0.00016438,2]
[361301328,1747437040770,-790.74646469,0.00016438,2]
[361301329,1747437040782,-2173.00353531,0.00016438,2]
[361301330,1747437040792,-400.0,0.00016438,2]
[361301331,1747437040801,-450.0,0.00016438,2]
[361301332,1747437040810,-881.45,0.00016438,2]
[361301333,1747437040819,-400.0,0.00016438,2]
[361301334,1747437040828,-545.81,0.00016438,2]
[361301335,1747437040837,-647.75,0.00016438,2]
[361301336,1747437040847,-1474.51,0.00016438,2]
[361301337,1747437040856,-2171.8,0.00016438,2]
[361301338,1747437040865,-400.0,0.00016438,2]
[361301339,1747437040875,-1019.8,0.00016438,2]
[361301340,1747437040884,-996.56,0.00016438,2]
[361301342,1747437040894,-688.39,0.00016438,2]
[361301344,1747437040903,-400.0,0.00016438,2]
[361301346,1747437040912,-400.0,0.00016438,2]
[361301348,1747437040922,-400.0,0.00016438,2]
[361301350,1747437040931,-462.52,0.00016438,2]
[361301352,1747437040940,-603.36,0.00016438,2]
[361301354,1747437040949,-1395.47,0.00016438,2]
[361301356,1747437040958,-585.84366455,0.00016438,2]
[361301358,1747437040974,-69.79633545,0.00016438,2]
[361301360,1747437040984,-400.0,0.00016438,2]
[361301361,1747437040993,-400.0,0.00016438,2]
[361301362,1747437041002,-266.16933986,0.00016438,2]
[361301390,1747437046450,-220.81411002,0.00016438,2]
[361301391,1747437047801,-105.28655012,0.00016438,2]
[361301392,1747437047812,-813.69,0.00016438,2]
[361301393,1747437047821,-2000.0,0.00016438,2]
[361301394,1747437047830,-418.18309338,0.00016438,2]
[361301395,1747437047839,-639.58,0.00016438,2]
[361301396,1747437047849,-3999.24,0.00016438,2]
[361301397,1747437047858,-1579.67,0.00016438,2]
[361301398,1747437047867,-578.37,0.00016438,2]
[361301399,1747437047876,-400.0,0.00016438,2]
[361301400,1747437047886,-383.81174704,0.00016438,2]
[361301401,1747437047903,-16.18825296,0.00016438,2]
[361301402,1747437047912,-2436.81552261,0.00016438,2]
[361301403,1747437048778,-983.63171018,0.00016438,2]
[361301404,1747437048790,-1647.88276721,0.00016438,2]
[361301405,1747437048799,-400.0,0.00016438,2]
[361301406,1747437048809,-400.0,0.00016438,2]
[361301407,1747437048818,-1292.72,0.00016438,2]
[361301408,1747437048827,-400.0,0.00016438,2]
[361301409,1747437048837,-400.0,0.00016438,2]
[361301410,1747437048846,-400.0,0.00016438,2]
[361301411,1747437048855,-400.0,0.00016438,2]
[361301412,1747437048864,-801.48,0.00016438,2]
[361301413,1747437048873,-342.30177671,0.00016438,2]
[361301414,1747437048884,-1303.13822329,0.00016438,2]
[361301415,1747437048894,-400.0,0.00016438,2]
[361301416,1747437048903,-400.0,0.00016438,2]
[361301417,1747437048912,-693.26,0.00016438,2]
[361301418,1747437048922,-1344.15,0.00016438,2]
[361301419,1747437048933,-2153.98,0.00016438,2]
[361301420,1747437048943,-400.0,0.00016438,2]
[361301421,1747437048952,-1231.83,0.00016438,2]
[361301422,1747437048962,-400.0,0.00016438,2]
[361301423,1747437048971,-589.62,0.00016438,2]
[361301424,1747437048980,-1959.28,0.00016438,2]
[361301425,1747437048990,-400.0,0.00016438,2]
[361301426,1747437049000,-444.10948036,0.00016438,2]
[361301427,1747437049017,-2230.08051964,0.00016438,2]
[361301428,1747437049029,-475.32,0.00016438,2]
[361301429,1747437049038,-16.92906927,0.00016438,2]
[361301430,1747437049056,-865.15093073,0.00016438,2]
[361301431,1747437049066,-1473.03,0.00016438,2]
[361301432,1747437049075,-401.01,0.00016438,2]
[361301433,1747437049085,-400.0,0.00016438,2]
[361301434,1747437049095,-400.0,0.00016438,2]
[361301435,1747437049105,-9243.04138717,0.00016438,2]
[361301436,1747437049158,-2405.21861283,0.00016438,2]
[361301437,1747437049167,-227.0757196,0.00016438,2]
[361301438,1747437049178,-2315.34,0.00016438,2]
[361301439,1747437049187,-469.99,0.00016438,2]
[361301440,1747437049196,-504.97,0.00016438,2]
[361301441,1747437049205,-400.0,0.00016438,2]
[361301442,1747437049214,-435.35,0.00016438,2]
[361301443,1747437049223,-400.0,0.00016438,2]
[361301444,1747437049233,-261.76762488,0.00016438,2]
[361301445,1747437049243,-652.83,0.00016438,2]
[361301446,1747437049252,-2888.87,0.00016438,2]
[361301447,1747437049261,-400.0,0.00016438,2]
[361301448,1747437049270,-400.0,0.00016438,2]
[361301449,1747437049279,-3373.93,0.00016438,2]
[361301450,1747437049289,-400.0,0.00016438,2]
[361301451,1747437049298,-400.0,0.00016438,2]
[361301452,1747437049308,-729.02,0.00016438,2]
[361301453,1747437049317,-400.0,0.00016438,2]
[361301454,1747437049327,-557.69,0.00016438,2]
[361301455,1747437049337,-400.0,0.00016438,2]
[361301456,1747437049346,-1885.49,0.00016438,2]
[361301457,1747437049355,-400.0,0.00016438,2]
[361301458,1747437049365,-450.0,0.00016438,2]
[361301459,1747437049374,-400.0,0.00016438,2]
[361301460,1747437049383,-832.45,0.00016438,2]
[361301461,1747437049393,-400.0,0.00016438,2]
[361301462,1747437049402,-400.0,0.00016438,2]
[361301463,1747437049412,-903.93,0.00016438,2]
[361301464,1747437049422,-400.0,0.00016438,2]
[361301465,1747437049431,-400.0,0.00016438,2]
[361301466,1747437049440,-1151.45,0.00016438,2]
[361301467,1747437049449,-355.543243,0.00016438,2]
[361301468,1747437049458,-416.42600948,0.00016438,2]
[361301469,1747437049467,-1917.05,0.00016438,2]
[361301470,1747437049476,-550.34,0.00016438,2]
[361301471,1747437049484,-400.0,0.00016438,2]
[361301472,1747437049493,-400.0,0.00016438,2]
[361301473,1747437049502,-1084.27,0.00016438,2]
[361301474,1747437049512,-400.0,0.00016438,2]
[361301475,1747437049520,-400.0,0.00016438,2]
[361301476,1747437049529,-400.0,0.00016438,2]
[361301477,1747437049538,-411.55034039,0.00016438,2]
[361301478,1747437049547,-400.0,0.00016438,2]
[361301479,1747437049557,-925.15,0.00016438,2]
[361301480,1747437049566,-551.67,0.00016438,2]
[361301481,1747437049575,-1069.52,0.00016438,2]
[361301482,1747437049584,-400.0,0.00016438,2]
[361301483,1747437049593,-400.0,0.00016438,2]
[361301484,1747437049603,-874.34,0.00016438,2]
[361301485,1747437049612,-463.96,0.00016438,2]
[361301486,1747437049621,-400.0,0.00016438,2]
[361301487,1747437049630,-400.0,0.00016438,2]
[361301488,1747437049639,-369.07351853,0.00016438,2]
[361301489,1747437049652,-39.30648147,0.00016438,2]
[361301490,1747437049661,-400.0,0.00016438,2]
[361301491,1747437049670,-1659.97,0.00016438,2]
[361301492,1747437049680,-400.0,0.00016438,2]
[361301493,1747437049689,-853.45,0.00016438,2]
[361301494,1747437049698,-400.0,0.00016438,2]
[361301495,1747437049707,-400.0,0.00016438,2]
[361301496,1747437049717,-1985.39,0.00016438,2]
[361301497,1747437049726,-400.0,0.00016438,2]
[361301498,1747437049735,-400.0,0.00016438,2]
[361301499,1747437049744,-400.0,0.00016438,2]
[361301500,1747437049753,-400.0,0.00016438,2]
[361301501,1747437049763,-400.0,0.00016438,2]
[361301502,1747437049772,-400.0,0.00016438,2]
[361301503,1747437049781,-520.23,0.00016438,2]
[361301504,1747437049791,-5106.71,0.00016438,2]
[361301505,1747437049801,-465.9,0.00016438,2]
[361301506,1747437049810,-931.76,0.00016438,2]
[361301507,1747437049819,-1062.6,0.00016438,2]
[361301508,1747437049828,-405.62,0.00016438,2]
[361301509,1747437049838,-3750.55,0.00016438,2]
[361301510,1747437049847,-400.0,0.00016438,2]
[361301511,1747437049856,-3299.79,0.00016438,2]
[361301512,1747437049866,-2041.93,0.00016438,2]
[361301513,1747437049876,-4024.01,0.00016438,2]
[361301514,1747437049885,-2275.74,0.00016438,2]
[361301515,1747437049895,-412.47,0.00016438,2]
[361301516,1747437049904,-400.0,0.00016438,2]
[361301517,1747437049913,-400.0,0.00016438,2]
[361301518,1747437049923,-400.0,0.00016438,2]
[361301519,1747437049932,-3007.59,0.00016438,2]
[361301520,1747437049941,-3172.54,0.00016438,2]
[361301521,1747437049950,-400.0,0.00016438,2]
[361301522,1747437049959,-6481.85,0.00016438,2]
[361301523,1747437049968,-400.0,0.00016438,2]
[361301524,1747437049977,-951.71,0.00016438,2]
[361301525,1747437049986,-400.0,0.00016438,2]
[361301526,1747437049995,-400.0,0.00016438,2]
[361301527,1747437050005,-2985.72,0.00016438,2]
[361301528,1747437050018,-1661.15,0.00016438,2]
[361301529,1747437050028,-400.0,0.00016438,2]
[361301530,1747437050037,-2063.06,0.00016438,2]
[361301531,1747437050046,-412.82,0.00016438,2]
[361301532,1747437050056,-1585.91,0.00016438,2]
[361301533,1747437050066,-400.0,0.00016438,2]
[361301534,1747437050075,-1511.33,0.00016438,2]
[361301535,1747437050085,-400.0,0.00016438,2]
[361301536,1747437050094,-867.94,0.00016438,2]
[361301537,1747437050104,-400.0,0.00016438,2]
[361301538,1747437050114,-413.31,0.00016438,2]
[361301539,1747437050124,-286.35146999,0.00016438,2]
[361301540,1747437050133,-400.0,0.00016438,2]
[361301541,1747437050142,-400.0,0.00016438,2]
[361301542,1747437050152,-2332.26,0.00016438,2]
[361301543,1747437050161,-734.68,0.00016438,2]
[361301544,1747437050171,-2583.56,0.00016438,2]
[361301545,1747437050180,-400.0,0.00016438,2]
[361301546,1747437050189,-400.0,0.00016438,2]
[361301547,1747437050198,-400.0,0.00016438,2]
[361301548,1747437050208,-400.0,0.00016438,2]
[361301549,1747437050218,-400.0,0.00016438,2]
[361301550,1747437050227,-1023.61,0.00016438,2]
[361301551,1747437050237,-895.83,0.00016438,2]
[361301552,1747437050246,-1111.62,0.00016438,2]
[361301553,1747437050256,-400.0,0.00016438,2]
[361301554,1747437050265,-400.0,0.00016438,2]
[361301555,1747437050274,-3446.0,0.00016438,2]
[361301556,1747437050283,-455.69382131,0.00016438,2]
[361301557,1747437050293,-807.82,0.00016438,2]
[361301558,1747437050302,-400.0,0.00016438,2]
[361301559,1747437050311,-400.0,0.00016438,2]
[361301560,1747437050321,-2135.8,0.00016438,2]
[361301561,1747437050330,-941.44,0.00016438,2]
[361301562,1747437050339,-10253.08,0.00016438,2]
[361301563,1747437050348,-423.12,0.00016438,2]
[361301564,1747437050357,-578.24,0.00016438,2]
[361301565,1747437050367,-2956.44,0.00016438,2]
[361301566,1747437050376,-413.3,0.00016438,2]
[361301567,1747437050386,-723.36,0.00016438,2]
[361301568,1747437050396,-1494.61,0.00016438,2]
[361301569,1747437050405,-400.0,0.00016438,2]
[361301570,1747437050414,-634.2,0.00016438,2]
[361301571,1747437050423,-6445.45,0.00016438,2]
[361301572,1747437050432,-2619.89,0.00016438,2]
[361301573,1747437050441,-1100.11,0.00016438,2]
[361301574,1747437050450,-1133.9,0.00016438,2]
[361301575,1747437050459,-400.0,0.00016438,2]
[361301576,1747437050468,-401.48207419,0.00016438,2]
[361301577,1747437050478,-400.0,0.00016438,2]
[361301578,1747437050487,-1072.12,0.00016438,2]
[361301579,1747437050496,-400.0,0.00016438,2]
[361301580,1747437050506,-2678.23,0.00016438,2]
[361301581,1747437050515,-400.0,0.00016438,2]
[361301582,1747437050524,-906.22,0.00016438,2]
[361301583,1747437050533,-547.25,0.00016438,2]
[361301584,1747437050542,-400.0,0.00016438,2]
[361301585,1747437050551,-1161.68,0.00016438,2]
[361301586,1747437050560,-400.0,0.00016438,2]
[361301587,1747437050569,-5149.99,0.00016438,2]
[361301588,1747437050579,-400.0,0.00016438,2]
[361301589,1747437050588,-456.57,0.00016438,2]
[361301590,1747437050597,-1007.89,0.00016438,2]
[361301591,1747437050606,-400.0,0.00016438,2]
[361301592,1747437050615,-506.79,0.00016438,2]
[361301593,1747437050625,-4876.43,0.00016438,2]
[361301594,1747437050634,-588.56,0.00016438,2]
[361301595,1747437050643,-1328.7,0.00016438,2]
[361301596,1747437050652,-400.0,0.00016438,2]
[361301597,1747437050661,-1210.56,0.00016438,2]
[361301598,1747437050670,-786.47,0.00016438,2]
[361301599,1747437050678,-400.0,0.00016438,2]
[361301600,1747437050687,-342.06382228,0.00016438,2]
[361301601,1747437050696,-400.0,0.00016438,2]
[361301602,1747437050705,-400.0,0.00016438,2]
[361301603,1747437050714,-3510.43,0.00016438,2]
[361301604,1747437050724,-400.0,0.00016438,2]
[361301605,1747437050732,-779.68,0.00016438,2]
[361301606,1747437050741,-400.0,0.00016438,2]
[361301607,1747437050750,-668.5,0.00016438,2]
[361301608,1747437050759,-400.0,0.00016438,2]